[Event "Titled Tuesday Blitz September 27 Early 2022"]
[White "Mladek, Richard"]
[Black "Wirig, Anthony"]
[WhiteFideId "386588"]
[BlackFideId "615013"]
[WhiteElo "2688"]
[BlackElo "2904"]
[Result "0-1"]
[Round "05"]
[TimeControl "180+1"]
[Date "2022.09.27"]
[WhiteClock "0:00:04"]
[BlackClock "0:00:27"]

1. e4 {[%clk 0:03:00]}  c5 {[%clk 0:02:59]} 2. Nf3 {[%clk 0:02:59]}  e6 {[%clk 0:03:00]} 3. d4 {[%clk 0:02:57]}  cxd4 {[%clk 0:03:01]} 4. Nxd4 {[%clk 0:02:58]}  Nf6 {[%clk 0:03:01]} 5. Nc3 {[%clk 0:02:58]}  Nc6 {[%clk 0:03:02]} 6. Nxc6 {[%clk 0:02:59]}  bxc6 {[%clk 0:03:03]} 7. e5 {[%clk 0:02:59]}  Nd5 {[%clk 0:03:03]} 8. Ne4 {[%clk 0:03:00]}  Qc7 {[%clk 0:03:02]} 9. f4 {[%clk 0:03:00]}  Qb6 {[%clk 0:03:02]} 10. c4 {[%clk 0:03:01]}  Bb4+ {[%clk 0:03:01]} 11. Ke2 {[%clk 0:03:01]}  f5 {[%clk 0:03:01]} 12. Nf2 {[%clk 0:03:02]}  Qa6 {[%clk 0:03:00]} 13. Kf3 {[%clk 0:03:01]}  Nc7 {[%clk 0:02:59]} 14. Be3 {[%clk 0:02:49]}  Be7 {[%clk 0:02:58]} 15. h4 {[%clk 0:02:41]}  c5 {[%clk 0:02:55]} 16. Kg3 {[%clk 0:02:35]}  Bb7 {[%clk 0:02:52]} 17. Be2 {[%clk 0:02:32]}  O-O-O {[%clk 0:02:48]} 18. Bf3 {[%clk 0:02:25]}  d6 {[%clk 0:02:27]} 19. exd6 {[%clk 0:02:17]}  Bxd6 {[%clk 0:02:24]} 20. Qb3 {[%clk 0:02:02]}  e5 {[%clk 0:01:42]} 21. Qxb7+ {[%clk 0:01:56]}  Qxb7 {[%clk 0:01:43]} 22. Bxb7+ {[%clk 0:01:57]}  Kxb7 {[%clk 0:01:43]} 23. Nd3 {[%clk 0:01:33]}  e4 {[%clk 0:01:23]} 24. Nxc5+ {[%clk 0:00:57]}  Bxc5 {[%clk 0:01:23]} 25. Bxc5 {[%clk 0:00:58]}  Rd3+ {[%clk 0:01:23]} 26. Kh2 {[%clk 0:00:59]}  Ne6 {[%clk 0:01:16]} 27. Ba3 {[%clk 0:00:42]}  Rhd8 {[%clk 0:01:07]} 28. Rac1 {[%clk 0:00:39]}  Rd2 {[%clk 0:01:05]} 29. Rhf1 {[%clk 0:00:36]}  R8d3 {[%clk 0:00:58]} 30. h5 {[%clk 0:00:15]}  Kc6 {[%clk 0:00:54]} 31. Kg1 {[%clk 0:00:10]}  Nd4 {[%clk 0:00:53]} 32. Kh2 {[%clk 0:00:08]}  Nf3+ {[%clk 0:00:46]} 33. Kh1 {[%clk 0:00:07]}  Nd4 {[%clk 0:00:34]} 34. Kh2 {[%clk 0:00:05]}  a6 {[%clk 0:00:34]} 35. Bb4 {[%clk 0:00:02]}  Rxb2 {[%clk 0:00:26]} 36. Bc3 {[%clk 0:00:03]}  Rxa2 {[%clk 0:00:27]} 37. Bxd4 {[%clk 0:00:02]}  Rxd4 {[%clk 0:00:28]} 38. Rb1 {[%clk 0:00:03]}  Rdd2 {[%clk 0:00:27]} 39. Rb8 {[%clk 0:00:03]}  Rxg2+ {[%clk 0:00:27]} 40. Kh3 {[%clk 0:00:04]}  Rh2+ {[%clk 0:00:27]} 0-1


[Site "https://www.chess.com"]

[Event "Titled Tuesday Blitz September 27 Early 2022"]
[White "Moaataz, Ayah"]
[Black "Mitrovic, Darko R"]
[WhiteFideId "10615873"]
[BlackFideId "927023"]
[WhiteElo "1993"]
[BlackElo "2150"]
[Result "1-0"]
[Round "05"]
[TimeControl "180+1"]
[Date "2022.09.27"]
[WhiteClock "0:01:07"]
[BlackClock "0:00:01"]

1. c4 {[%clk 0:03:00]}  e5 {[%clk 0:02:59]} 2. g3 {[%clk 0:03:01]}  Nf6 {[%clk 0:02:57]} 3. Bg2 {[%clk 0:03:01]}  d5 {[%clk 0:02:56]} 4. cxd5 {[%clk 0:03:02]}  Nxd5 {[%clk 0:02:54]} 5. Nc3 {[%clk 0:03:03]}  Nb6 {[%clk 0:02:54]} 6. Nf3 {[%clk 0:03:03]}  Bd6 {[%clk 0:02:53]} 7. d4 {[%clk 0:03:02]}  exd4 {[%clk 0:02:39]} 8. Nxd4 {[%clk 0:03:02]}  O-O {[%clk 0:02:38]} 9. O-O {[%clk 0:03:01]}  c6 {[%clk 0:02:31]} 10. Qb3 {[%clk 0:02:50]}  Bxg3 {[%clk 0:02:13]} 11. hxg3 {[%clk 0:02:50]}  Qxd4 {[%clk 0:02:12]} 12. Be3 {[%clk 0:02:51]}  Qf6 {[%clk 0:01:39]} 13. Ne4 {[%clk 0:02:44]}  Qe6 {[%clk 0:01:29]} 14. Bxb6 {[%clk 0:02:36]}  axb6 {[%clk 0:01:26]} 15. Qxb6 {[%clk 0:02:36]}  Nd7 {[%clk 0:01:23]} 16. Qc7 {[%clk 0:02:29]}  Qe5 {[%clk 0:01:06]} 17. Qxe5 {[%clk 0:02:15]}  Nxe5 {[%clk 0:01:05]} 18. Nd6 {[%clk 0:02:16]}  Rb8 {[%clk 0:00:50]} 19. b3 {[%clk 0:02:13]}  Be6 {[%clk 0:00:44]} 20. Rfd1 {[%clk 0:02:12]}  g6 {[%clk 0:00:32]} 21. Rd4 {[%clk 0:02:07]}  Rfd8 {[%clk 0:00:28]} 22. Rad1 {[%clk 0:02:07]}  Rd7 {[%clk 0:00:27]} 23. Ne4 {[%clk 0:02:04]}  Rbd8 {[%clk 0:00:23]} 24. Nf6+ {[%clk 0:01:58]}  Kg7 {[%clk 0:00:22]} 25. Nxd7 {[%clk 0:01:58]}  Rxd7 {[%clk 0:00:22]} 26. Rxd7 {[%clk 0:01:53]}  Nxd7 {[%clk 0:00:21]} 27. Rd4 {[%clk 0:01:46]}  Kf8 {[%clk 0:00:16]} 28. Rb4 {[%clk 0:01:45]}  Nc5 {[%clk 0:00:16]} 29. Kf1 {[%clk 0:01:38]}  Ke7 {[%clk 0:00:15]} 30. Ke1 {[%clk 0:01:38]}  h5 {[%clk 0:00:15]} 31. Rd4 {[%clk 0:01:38]}  Nd7 {[%clk 0:00:12]} 32. Kd2 {[%clk 0:01:38]}  c5 {[%clk 0:00:10]} 33. Re4 {[%clk 0:01:32]}  b5 {[%clk 0:00:09]} 34. Re3 {[%clk 0:01:31]}  Nb6 {[%clk 0:00:07]} 35. Bc6 {[%clk 0:01:29]}  b4 {[%clk 0:00:06]} 36. Be4 {[%clk 0:01:25]}  c4 {[%clk 0:00:05]} 37. Kc2 {[%clk 0:01:23]}  Kd6 {[%clk 0:00:04]} 38. Bf3 {[%clk 0:01:11]}  Kc5 {[%clk 0:00:04]} 39. Re5+ {[%clk 0:01:11]}  Kd6 {[%clk 0:00:03]} 40. Ra5 {[%clk 0:01:10]}  cxb3+ {[%clk 0:00:03]} 41. axb3 {[%clk 0:01:09]}  Nd7 {[%clk 0:00:03]} 42. Rb5 {[%clk 0:01:07]}  Nc5 {[%clk 0:00:01]} 43. Rxb4 {[%clk 0:01:07]} 1-0


[Site "https://www.chess.com"]

[Event "Titled Tuesday Blitz September 27 Early 2022"]
[White "Navarrete Mendez, Gonzalo Alberto"]
[Black "Bharath Subramaniyam H"]
[WhiteFideId "5106850"]
[BlackFideId "46634827"]
[WhiteElo "2627"]
[BlackElo "2804"]
[Result "0-1"]
[Round "05"]
[TimeControl "180+1"]
[Date "2022.09.27"]
[WhiteClock "0:00:05"]
[BlackClock "0:00:16"]

1. e4 {[%clk 0:03:00]}  c5 {[%clk 0:02:58]} 2. Nf3 {[%clk 0:03:00]}  e6 {[%clk 0:02:55]} 3. Nc3 {[%clk 0:03:00]}  a6 {[%clk 0:02:53]} 4. d4 {[%clk 0:03:00]}  cxd4 {[%clk 0:02:52]} 5. Nxd4 {[%clk 0:03:01]}  Qc7 {[%clk 0:02:53]} 6. Bd3 {[%clk 0:03:00]}  Nf6 {[%clk 0:02:52]} 7. Qe2 {[%clk 0:03:00]}  d6 {[%clk 0:02:52]} 8. Bg5 {[%clk 0:03:00]}  Be7 {[%clk 0:02:51]} 9. O-O-O {[%clk 0:03:00]}  Nbd7 {[%clk 0:02:51]} 10. f4 {[%clk 0:02:59]}  b5 {[%clk 0:02:42]} 11. Rhe1 {[%clk 0:02:58]}  b4 {[%clk 0:02:41]} 12. Nd5 {[%clk 0:02:58]}  Nxd5 {[%clk 0:02:23]} 13. exd5 {[%clk 0:02:54]}  Bxg5 {[%clk 0:02:23]} 14. fxg5 {[%clk 0:02:17]}  e5 {[%clk 0:02:21]} 15. Nf5 {[%clk 0:02:10]}  g6 {[%clk 0:02:17]} 16. Nh6 {[%clk 0:01:52]}  Nc5 {[%clk 0:02:16]} 17. Qf3 {[%clk 0:01:49]}  Bb7 {[%clk 0:02:04]} 18. Qf6 {[%clk 0:01:45]}  Rf8 {[%clk 0:02:02]} 19. Bc4 {[%clk 0:00:58]}  Nd7 {[%clk 0:01:48]} 20. Qf1 {[%clk 0:00:47]}  Rc8 {[%clk 0:01:44]} 21. Bb3 {[%clk 0:00:45]}  Nc5 {[%clk 0:01:24]} 22. Kb1 {[%clk 0:00:42]}  Nxb3 {[%clk 0:01:23]} 23. cxb3 {[%clk 0:00:43]}  Qd7 {[%clk 0:01:13]} 24. Qf3 {[%clk 0:00:31]}  Rc5 {[%clk 0:01:09]} 25. Ng4 {[%clk 0:00:30]}  Qf5+ {[%clk 0:01:07]} 26. Qxf5 {[%clk 0:00:27]}  gxf5 {[%clk 0:01:08]} 27. Nf6+ {[%clk 0:00:25]}  Ke7 {[%clk 0:01:05]} 28. h4 {[%clk 0:00:17]}  h6 {[%clk 0:00:57]} 29. a3 {[%clk 0:00:13]}  bxa3 {[%clk 0:00:55]} 30. bxa3 {[%clk 0:00:14]}  Rc3 {[%clk 0:00:55]} 31. Kb2 {[%clk 0:00:13]}  Rg3 {[%clk 0:00:55]} 32. Rc1 {[%clk 0:00:13]}  Rxg2+ {[%clk 0:00:55]} 33. Ka1 {[%clk 0:00:13]}  hxg5 {[%clk 0:00:48]} 34. hxg5 {[%clk 0:00:12]}  Rc8 {[%clk 0:00:47]} 35. Rxc8 {[%clk 0:00:11]}  Bxc8 {[%clk 0:00:48]} 36. Rc1 {[%clk 0:00:11]}  Rxg5 {[%clk 0:00:46]} 37. Nh7 {[%clk 0:00:09]}  Rg8 {[%clk 0:00:46]} 38. Rc7+ {[%clk 0:00:07]}  Kd8 {[%clk 0:00:44]} 39. Rxf7 {[%clk 0:00:07]}  f4 {[%clk 0:00:42]} 40. Nf6 {[%clk 0:00:07]}  Rg1+ {[%clk 0:00:41]} 41. Kb2 {[%clk 0:00:07]}  Rg2+ {[%clk 0:00:39]} 42. Kc3 {[%clk 0:00:06]}  Re2 {[%clk 0:00:36]} 43. Kd3 {[%clk 0:00:04]}  Re3+ {[%clk 0:00:36]} 44. Kc2 {[%clk 0:00:03]}  e4 {[%clk 0:00:31]} 45. Nh7 {[%clk 0:00:02]}  f3 {[%clk 0:00:28]} 46. Kd2 {[%clk 0:00:01]}  Re2+ {[%clk 0:00:28]} 47. Kd1 {[%clk 0:00:02]}  Rg2 {[%clk 0:00:17]} 48. Ng5 {[%clk 0:00:03]}  Rxg5 {[%clk 0:00:17]} 49. Rf8+ {[%clk 0:00:04]}  Kc7 {[%clk 0:00:16]} 50. Rf7+ {[%clk 0:00:04]}  Kb6 {[%clk 0:00:17]} 51. Rg7 {[%clk 0:00:05]}  Rxg7 {[%clk 0:00:16]} 0-1


[Site "https://www.chess.com"]

[Event "Titled Tuesday Blitz September 27 Early 2022"]
[White "Nazari, Arad"]
[Black "Kosakowski, Jakub"]
[WhiteFideId "12577324"]
[BlackFideId "1185080"]
[WhiteElo "2681"]
[BlackElo "2853"]
[Result "1-0"]
[Round "05"]
[TimeControl "180+1"]
[Date "2022.09.27"]
[WhiteClock "0:00:37"]
[BlackClock "0:00:04"]

1. e4 {[%clk 0:03:00]}  c5 {[%clk 0:02:43]} 2. Nf3 {[%clk 0:02:56]}  d6 {[%clk 0:02:42]} 3. Bb5+ {[%clk 0:02:54]}  Bd7 {[%clk 0:02:42]} 4. Bxd7+ {[%clk 0:02:53]}  Nxd7 {[%clk 0:02:43]} 5. O-O {[%clk 0:02:52]}  Ngf6 {[%clk 0:02:41]} 6. Qe2 {[%clk 0:02:53]}  e6 {[%clk 0:02:39]} 7. c3 {[%clk 0:02:53]}  Be7 {[%clk 0:02:39]} 8. d4 {[%clk 0:02:54]}  O-O {[%clk 0:02:39]} 9. Rd1 {[%clk 0:02:45]}  Qc7 {[%clk 0:02:34]} 10. h3 {[%clk 0:02:38]}  Rfc8 {[%clk 0:02:27]} 11. Bf4 {[%clk 0:02:35]}  cxd4 {[%clk 0:02:19]} 12. cxd4 {[%clk 0:02:35]}  Qc2 {[%clk 0:01:54]} 13. Nbd2 {[%clk 0:02:34]}  Qxb2 {[%clk 0:01:54]} 14. Rab1 {[%clk 0:02:21]}  Qxa2 {[%clk 0:01:51]} 15. Rxb7 {[%clk 0:02:22]}  Qa4 {[%clk 0:01:48]} 16. Bg5 {[%clk 0:02:10]}  Bf8 {[%clk 0:01:46]} 17. Rdb1 {[%clk 0:01:55]}  a5 {[%clk 0:01:38]} 18. Bxf6 {[%clk 0:01:43]}  Nxf6 {[%clk 0:01:36]} 19. Ng5 {[%clk 0:01:44]}  Qc2 {[%clk 0:01:22]} 20. Rxf7 {[%clk 0:01:18]}  h6 {[%clk 0:00:25]} 21. Rxf6 {[%clk 0:01:17]}  gxf6 {[%clk 0:00:25]} 22. Nxe6 {[%clk 0:01:17]}  Ra7 {[%clk 0:00:20]} 23. Qg4+ {[%clk 0:01:11]}  Kh8 {[%clk 0:00:20]} 24. Qf4 {[%clk 0:01:01]}  a4 {[%clk 0:00:19]} 25. Qxf6+ {[%clk 0:00:45]}  Bg7 {[%clk 0:00:14]} 26. Nxg7 {[%clk 0:00:45]}  Rxg7 {[%clk 0:00:15]} 27. Rb7 {[%clk 0:00:45]}  Rc7 {[%clk 0:00:10]} 28. Qxh6+ {[%clk 0:00:45]}  Kg8 {[%clk 0:00:06]} 29. Rb8+ {[%clk 0:00:46]}  Kf7 {[%clk 0:00:07]} 30. Qf4+ {[%clk 0:00:45]}  Kg6 {[%clk 0:00:03]} 31. Qf5+ {[%clk 0:00:39]}  Kh6 {[%clk 0:00:03]} 32. Rh8+ {[%clk 0:00:37]}  Rh7 {[%clk 0:00:04]} 33. Qf6+ {[%clk 0:00:37]}  Kh5 {[%clk 0:00:04]} 34. g4# {[%clk 0:00:37]} 1-0


[Site "https://www.chess.com"]

[Event "Titled Tuesday Blitz September 27 Early 2022"]
[White "Ovezdurdyyeva, Jemal"]
[Black "Salman, Pavel"]
[WhiteFideId "14001888"]
[BlackFideId "24153753"]
[WhiteElo "1946"]
[BlackElo "2039"]
[Result "0-1"]
[Round "05"]
[TimeControl "180+1"]
[Date "2022.09.27"]
[WhiteClock "0:00:22"]
[BlackClock "0:02:37"]

1. e4 {[%clk 0:00:41]}  c5 {[%clk 0:02:59]} 2. Nf3 {[%clk 0:00:40]}  e6 {[%clk 0:03:00]} 3. c3 {[%clk 0:00:41]}  Nf6 {[%clk 0:02:59]} 4. e5 {[%clk 0:00:40]}  Nd5 {[%clk 0:03:00]} 5. d4 {[%clk 0:00:41]}  cxd4 {[%clk 0:03:01]} 6. cxd4 {[%clk 0:00:42]}  b6 {[%clk 0:03:01]} 7. Nc3 {[%clk 0:00:42]}  Nxc3 {[%clk 0:03:02]} 8. bxc3 {[%clk 0:00:42]}  Qc7 {[%clk 0:03:03]} 9. Bd2 {[%clk 0:00:41]}  Be7 {[%clk 0:03:03]} 10. Bd3 {[%clk 0:00:41]}  Ba6 {[%clk 0:03:04]} 11. Qe2 {[%clk 0:00:39]}  Bxd3 {[%clk 0:03:03]} 12. Qxd3 {[%clk 0:00:40]}  O-O {[%clk 0:03:04]} 13. O-O {[%clk 0:00:41]}  Nc6 {[%clk 0:03:04]} 14. Ng5 {[%clk 0:00:41]}  Bxg5 {[%clk 0:03:03]} 15. Bxg5 {[%clk 0:00:42]}  d6 {[%clk 0:03:04]} 16. exd6 {[%clk 0:00:39]}  Qxd6 {[%clk 0:03:04]} 17. Rfd1 {[%clk 0:00:38]}  Rac8 {[%clk 0:03:05]} 18. Rac1 {[%clk 0:00:38]}  h6 {[%clk 0:03:04]} 19. Bh4 {[%clk 0:00:37]}  Na5 {[%clk 0:03:02]} 20. c4 {[%clk 0:00:37]}  Qb4 {[%clk 0:02:53]} 21. c5 {[%clk 0:00:32]}  bxc5 {[%clk 0:02:52]} 22. dxc5 {[%clk 0:00:32]}  Qxh4 {[%clk 0:02:52]} 23. Qb5 {[%clk 0:00:29]}  Nc6 {[%clk 0:02:46]} 24. Rd7 {[%clk 0:00:27]}  Qg5 {[%clk 0:02:40]} 25. Rcd1 {[%clk 0:00:27]}  Ne5 {[%clk 0:02:39]} 26. Rxa7 {[%clk 0:00:26]}  Rxc5 {[%clk 0:02:39]} 27. Qb7 {[%clk 0:00:23]}  Rc1 {[%clk 0:02:36]} 28. Rxc1 {[%clk 0:00:22]}  Qxc1# {[%clk 0:02:37]} 0-1


[Site "https://www.chess.com"]

[Event "Titled Tuesday Blitz September 27 Early 2022"]
[White "Papp, Levente"]
[Black "Sadilek, Peter"]
[WhiteFideId "751243"]
[BlackFideId "1616439"]
[WhiteElo "2341"]
[BlackElo "2145"]
[Result "1-0"]
[Round "05"]
[TimeControl "180+1"]
[Date "2022.09.27"]
[WhiteClock "0:00:04"]
[BlackClock "0:00:09"]

1. Nf3 {[%clk 0:02:31]}  Nf6 {[%clk 0:02:59]} 2. g3 {[%clk 0:02:30]}  e6 {[%clk 0:02:59]} 3. Bg2 {[%clk 0:02:29]}  d5 {[%clk 0:03:00]} 4. O-O {[%clk 0:02:30]}  Be7 {[%clk 0:03:01]} 5. b3 {[%clk 0:02:30]}  O-O {[%clk 0:03:01]} 6. Bb2 {[%clk 0:02:31]}  c5 {[%clk 0:03:02]} 7. e3 {[%clk 0:02:30]}  Nc6 {[%clk 0:03:02]} 8. c4 {[%clk 0:02:30]}  b6 {[%clk 0:03:00]} 9. cxd5 {[%clk 0:02:22]}  exd5 {[%clk 0:02:57]} 10. d4 {[%clk 0:02:22]}  Ba6 {[%clk 0:02:33]} 11. Re1 {[%clk 0:02:21]}  Rc8 {[%clk 0:02:28]} 12. Nc3 {[%clk 0:02:20]}  c4 {[%clk 0:01:49]} 13. bxc4 {[%clk 0:02:02]}  Bxc4 {[%clk 0:01:47]} 14. Ne5 {[%clk 0:02:01]}  Na5 {[%clk 0:01:32]} 15. Qf3 {[%clk 0:01:50]}  Bb4 {[%clk 0:01:31]} 16. Rec1 {[%clk 0:01:49]}  Bxc3 {[%clk 0:01:15]} 17. Bxc3 {[%clk 0:01:46]}  b5 {[%clk 0:00:53]} 18. Bh3 {[%clk 0:01:38]}  Rb8 {[%clk 0:00:29]} 19. Bxa5 {[%clk 0:01:36]}  Qxa5 {[%clk 0:00:28]} 20. Nc6 {[%clk 0:01:37]}  Qd2 {[%clk 0:00:17]} 21. Nxb8 {[%clk 0:01:37]}  Rxb8 {[%clk 0:00:18]} 22. Bf1 {[%clk 0:01:29]}  Ne4 {[%clk 0:00:14]} 23. Bxc4 {[%clk 0:01:08]}  bxc4 {[%clk 0:00:15]} 24. Qf5 {[%clk 0:00:50]}  Rd8 {[%clk 0:00:15]} 25. Rf1 {[%clk 0:00:43]}  g6 {[%clk 0:00:15]} 26. Qe5 {[%clk 0:00:42]}  c3 {[%clk 0:00:15]} 27. Qc7 {[%clk 0:00:35]}  Re8 {[%clk 0:00:09]} 28. Qc6 {[%clk 0:00:33]}  Rd8 {[%clk 0:00:05]} 29. Qc7 {[%clk 0:00:32]}  Re8 {[%clk 0:00:05]} 30. Qd7 {[%clk 0:00:32]}  Re6 {[%clk 0:00:05]} 31. Qxd5 {[%clk 0:00:30]}  c2 {[%clk 0:00:04]} 32. Qc4 {[%clk 0:00:11]}  Nc3 {[%clk 0:00:04]} 33. Kg2 {[%clk 0:00:09]}  Rf6 {[%clk 0:00:04]} 34. d5 {[%clk 0:00:05]}  Nxd5 {[%clk 0:00:03]} 35. Qd4 {[%clk 0:00:05]}  Nxe3+ {[%clk 0:00:03]} 36. Qxe3 {[%clk 0:00:04]}  Qxe3 {[%clk 0:00:03]} 37. fxe3 {[%clk 0:00:05]}  Re6 {[%clk 0:00:03]} 38. Rac1 {[%clk 0:00:05]}  Rxe3 {[%clk 0:00:03]} 39. Rxc2 {[%clk 0:00:05]}  Ra3 {[%clk 0:00:04]} 40. Rf3 {[%clk 0:00:05]}  f5 {[%clk 0:00:05]} 41. Rxa3 {[%clk 0:00:05]}  Kg7 {[%clk 0:00:06]} 42. Ra6 {[%clk 0:00:05]}  Kh6 {[%clk 0:00:07]} 43. Rc7 {[%clk 0:00:05]}  Kg5 {[%clk 0:00:07]} 44. h4+ {[%clk 0:00:05]}  Kg4 {[%clk 0:00:08]} 45. Ra4+ {[%clk 0:00:04]}  Kh5 {[%clk 0:00:09]} 46. Rxh7# {[%clk 0:00:04]} 1-0


[Site "https://www.chess.com"]

[Event "Titled Tuesday Blitz September 27 Early 2022"]
[White "Perez Gormaz, Matias"]
[Black "Gu, Xiaobing"]
[WhiteFideId "3406342"]
[BlackFideId "8602611"]
[WhiteElo "2341"]
[BlackElo "2174"]
[Result "0-1"]
[Round "05"]
[TimeControl "180+1"]
[Date "2022.09.27"]
[WhiteClock "0:00:03"]
[BlackClock "0:00:15"]

1. Nf3 {[%clk 0:02:59]}  Nf6 {[%clk 0:02:54]} 2. g3 {[%clk 0:02:59]}  g6 {[%clk 0:02:52]} 3. b3 {[%clk 0:02:59]}  Bg7 {[%clk 0:02:50]} 4. Bb2 {[%clk 0:03:00]}  d6 {[%clk 0:02:48]} 5. d4 {[%clk 0:03:00]}  O-O {[%clk 0:02:43]} 6. Bg2 {[%clk 0:03:00]}  Nbd7 {[%clk 0:02:36]} 7. O-O {[%clk 0:03:01]}  e5 {[%clk 0:02:35]} 8. dxe5 {[%clk 0:03:02]}  dxe5 {[%clk 0:02:34]} 9. Nxe5 {[%clk 0:02:58]}  Ng4 {[%clk 0:02:27]} 10. Nd3 {[%clk 0:02:57]}  Bxb2 {[%clk 0:02:25]} 11. Nxb2 {[%clk 0:02:57]}  Qf6 {[%clk 0:02:22]} 12. Qc1 {[%clk 0:02:58]}  Nc5 {[%clk 0:02:14]} 13. Nd2 {[%clk 0:02:51]}  Bf5 {[%clk 0:02:06]} 14. Nd3 {[%clk 0:02:48]}  Ne6 {[%clk 0:01:48]} 15. Bxb7 {[%clk 0:02:47]}  Nd4 {[%clk 0:01:38]} 16. Qd1 {[%clk 0:02:44]}  Rad8 {[%clk 0:01:34]} 17. Bg2 {[%clk 0:02:31]}  Rfe8 {[%clk 0:01:32]} 18. e4 {[%clk 0:02:22]}  Bc8 {[%clk 0:01:32]} 19. Rc1 {[%clk 0:01:52]}  Ne5 {[%clk 0:01:26]} 20. Nxe5 {[%clk 0:01:47]}  Qxe5 {[%clk 0:01:20]} 21. c3 {[%clk 0:01:38]}  Ne6 {[%clk 0:01:15]} 22. Qe2 {[%clk 0:01:30]}  Nc5 {[%clk 0:01:14]} 23. Nc4 {[%clk 0:01:18]}  Qe7 {[%clk 0:00:57]} 24. Rcd1 {[%clk 0:01:12]}  Ba6 {[%clk 0:00:46]} 25. Rfe1 {[%clk 0:01:11]}  Rxd1 {[%clk 0:00:44]} 26. Rxd1 {[%clk 0:01:07]}  Nxe4 {[%clk 0:00:42]} 27. Bxe4 {[%clk 0:00:55]}  Qxe4 {[%clk 0:00:42]} 28. Qxe4 {[%clk 0:00:56]}  Rxe4 {[%clk 0:00:42]} 29. Ne3 {[%clk 0:00:57]}  Kg7 {[%clk 0:00:39]} 30. Rd7 {[%clk 0:00:50]}  Re6 {[%clk 0:00:30]} 31. Rxc7 {[%clk 0:00:43]}  Rd6 {[%clk 0:00:30]} 32. Rxa7 {[%clk 0:00:37]}  Bc8 {[%clk 0:00:30]} 33. Kf1 {[%clk 0:00:32]}  Rd2 {[%clk 0:00:28]} 34. h4 {[%clk 0:00:27]}  h5 {[%clk 0:00:23]} 35. Ke1 {[%clk 0:00:26]}  Rb2 {[%clk 0:00:23]} 36. c4 {[%clk 0:00:25]}  Kf6 {[%clk 0:00:22]} 37. c5 {[%clk 0:00:24]}  Ke5 {[%clk 0:00:22]} 38. Rxf7 {[%clk 0:00:15]}  Ke4 {[%clk 0:00:22]} 39. Kd1 {[%clk 0:00:08]}  Kd3 {[%clk 0:00:22]} 40. Kc1 {[%clk 0:00:08]}  Rxa2 {[%clk 0:00:22]} 41. b4 {[%clk 0:00:07]}  Kc3 {[%clk 0:00:19]} 42. Nd1+ {[%clk 0:00:05]}  Kb3 {[%clk 0:00:19]} 43. Rf3+ {[%clk 0:00:05]}  Kxb4 {[%clk 0:00:18]} 44. c6 {[%clk 0:00:04]}  Bg4 {[%clk 0:00:17]} 45. Rf4+ {[%clk 0:00:04]}  Kb3 {[%clk 0:00:18]} 46. c7 {[%clk 0:00:01]}  Rc2+ {[%clk 0:00:17]} 47. Kb1 {[%clk 0:00:02]}  Bxd1 {[%clk 0:00:15]} 48. Rf6 {[%clk 0:00:02]}  Rxc7 {[%clk 0:00:15]} 49. Rxg6 {[%clk 0:00:02]}  Bc2+ {[%clk 0:00:15]} 50. Kc1 {[%clk 0:00:03]}  Bxg6+ {[%clk 0:00:15]} 0-1


[Site "https://www.chess.com"]

[Event "Titled Tuesday Blitz September 27 Early 2022"]
[White "Petrosyan, Manuel"]
[Black "Malek, Jan"]
[WhiteFideId "13300857"]
[BlackFideId "21864080"]
[WhiteElo "2858"]
[BlackElo "2686"]
[Result "1-0"]
[Round "05"]
[TimeControl "180+1"]
[Date "2022.09.27"]
[WhiteClock "0:00:24"]
[BlackClock "0:00:02"]

1. e4 {[%clk 0:02:57]}  c6 {[%clk 0:02:58]} 2. Nf3 {[%clk 0:02:56]}  d5 {[%clk 0:02:58]} 3. d3 {[%clk 0:02:57]}  dxe4 {[%clk 0:02:56]} 4. dxe4 {[%clk 0:02:58]}  Qxd1+ {[%clk 0:02:56]} 5. Kxd1 {[%clk 0:02:59]}  Nf6 {[%clk 0:02:56]} 6. Nfd2 {[%clk 0:02:57]}  g5 {[%clk 0:02:55]} 7. Bd3 {[%clk 0:02:52]}  h5 {[%clk 0:02:54]} 8. Nc4 {[%clk 0:02:51]}  Rg8 {[%clk 0:02:51]} 9. a4 {[%clk 0:02:50]}  Nbd7 {[%clk 0:02:51]} 10. Ke2 {[%clk 0:02:32]}  Nc5 {[%clk 0:02:48]} 11. Nc3 {[%clk 0:02:32]}  Be6 {[%clk 0:02:42]} 12. Ne5 {[%clk 0:02:14]}  O-O-O {[%clk 0:02:38]} 13. Be3 {[%clk 0:02:12]}  Nxd3 {[%clk 0:02:33]} 14. Nxd3 {[%clk 0:02:13]}  Kb8 {[%clk 0:02:02]} 15. Rhd1 {[%clk 0:02:00]}  Ng4 {[%clk 0:02:01]} 16. Nc5 {[%clk 0:02:00]}  Bc4+ {[%clk 0:01:55]} 17. Ke1 {[%clk 0:01:57]}  Rxd1+ {[%clk 0:01:52]} 18. Rxd1 {[%clk 0:01:55]}  Nxe3 {[%clk 0:01:52]} 19. fxe3 {[%clk 0:01:54]}  Kc8 {[%clk 0:01:28]} 20. Rd4 {[%clk 0:01:42]}  Be6 {[%clk 0:01:21]} 21. Nxe6 {[%clk 0:01:39]}  fxe6 {[%clk 0:01:22]} 22. e5 {[%clk 0:01:40]}  Bg7 {[%clk 0:01:21]} 23. Re4 {[%clk 0:01:40]}  Rf8 {[%clk 0:01:14]} 24. b3 {[%clk 0:01:14]}  Rf5 {[%clk 0:01:13]} 25. h3 {[%clk 0:01:15]}  Rxe5 {[%clk 0:01:08]} 26. Rxe5 {[%clk 0:01:15]}  Bxe5 {[%clk 0:01:08]} 27. Ne4 {[%clk 0:01:16]}  Bf6 {[%clk 0:01:01]} 28. Nc5 {[%clk 0:01:15]}  e5 {[%clk 0:00:34]} 29. g4 {[%clk 0:01:14]}  hxg4 {[%clk 0:00:32]} 30. hxg4 {[%clk 0:01:15]}  b6 {[%clk 0:00:32]} 31. Ne4 {[%clk 0:01:14]}  Kd7 {[%clk 0:00:32]} 32. Ke2 {[%clk 0:01:15]}  Ke6 {[%clk 0:00:33]} 33. Kd3 {[%clk 0:01:15]}  Kd5 {[%clk 0:00:31]} 34. Nc3+ {[%clk 0:01:14]}  Kc5 {[%clk 0:00:27]} 35. Na2 {[%clk 0:01:07]}  a5 {[%clk 0:00:25]} 36. Ke4 {[%clk 0:01:02]}  b5 {[%clk 0:00:23]} 37. Kd3 {[%clk 0:01:02]}  e6 {[%clk 0:00:20]} 38. axb5 {[%clk 0:00:44]}  cxb5 {[%clk 0:00:19]} 39. b4+ {[%clk 0:00:39]}  axb4 {[%clk 0:00:19]} 40. e4 {[%clk 0:00:39]}  Be7 {[%clk 0:00:16]} 41. Nc1 {[%clk 0:00:40]}  Kb6 {[%clk 0:00:15]} 42. Nb3 {[%clk 0:00:41]}  Bc5 {[%clk 0:00:15]} 43. Nd2 {[%clk 0:00:39]}  Bd4 {[%clk 0:00:12]} 44. Nf3 {[%clk 0:00:38]}  Kc6 {[%clk 0:00:05]} 45. Nxg5 {[%clk 0:00:38]}  Kd6 {[%clk 0:00:06]} 46. Nf3 {[%clk 0:00:35]}  Bc3 {[%clk 0:00:07]} 47. Ke2 {[%clk 0:00:31]}  Ke7 {[%clk 0:00:07]} 48. Kd1 {[%clk 0:00:31]}  Kf6 {[%clk 0:00:07]} 49. Ke2 {[%clk 0:00:29]}  Kg6 {[%clk 0:00:07]} 50. Kf2 {[%clk 0:00:29]}  Kf6 {[%clk 0:00:07]} 51. Kg3 {[%clk 0:00:30]}  Kg6 {[%clk 0:00:08]} 52. Kh4 {[%clk 0:00:29]}  Bd4 {[%clk 0:00:04]} 53. g5 {[%clk 0:00:29]}  Bc3 {[%clk 0:00:04]} 54. Kg4 {[%clk 0:00:29]}  Bd4 {[%clk 0:00:02]} 55. Nh4+ {[%clk 0:00:29]}  Kg7 {[%clk 0:00:03]} 56. Kh5 {[%clk 0:00:28]}  Be3 {[%clk 0:00:03]} 57. Nf3 {[%clk 0:00:26]}  Bf4 {[%clk 0:00:03]} 58. Ne1 {[%clk 0:00:26]}  Bd2 {[%clk 0:00:02]} 59. Nd3 {[%clk 0:00:26]}  Bc3 {[%clk 0:00:03]} 60. Nc5 {[%clk 0:00:26]}  Kf7 {[%clk 0:00:03]} 61. g6+ {[%clk 0:00:24]}  Kf6 {[%clk 0:00:02]} 62. Kh6 {[%clk 0:00:24]} 1-0


[Site "https://www.chess.com"]